[Event "44th Chess Olympiad Women 2022"]
[Site "Chennai"]
[Date "2022.07.29"]
[Round "1.55"]
[White "Elshalom Essayas Berhane"]
[Black "Hng, Mei-Xian Eunice"]
[Result "0-1"]
[WhiteElo "1481"]
[BlackElo "1823"]
[Annotator "NA"]
[PlyCount "90"]
[EventDate "2022.??.??"]
[TimeControl "60"]

1. d4 {[%emt 0:05:15]} Nf6 {[%emt 0:00:07]} 2. Nf3 {[%emt 0:00:08]} e6 {
[%emt 0:00:14]} 3. Bf4 {[%emt 0:00:15]} c5 {[%emt 0:00:06]} 4. e3 {[%emt 0:00:
00]} Qb6 {[%emt 0:01:21]} 5. Qc1 {[%emt 0:06:17]} Nc6 {[%emt 0:00:48]} 6. c3 {
[%emt 0:00:13]} Nh5 {[%emt 0:03:20]} 7. Bg3 {[%emt 0:01:12]} Nxg3 {[%emt 0:00:
00]} 8. hxg3 {[%emt 0:00:11]} d5 {[%emt 0:00:17]} 9. Bd3 {[%emt 0:01:12]} g6 {
[%emt 0:02:56]} 10. Nbd2 {[%emt 0:00:46]} Bg7 {[%emt 0:02:41]} 11. dxc5 {
[%emt 0:10:57]} Qxc5 {[%emt 0:00:25]} 12. Nb3 {[%emt 0:00:07]} Qb6 {[%emt 0:00:
00]} 13. e4 {[%emt 0:10:06]} dxe4 {[%emt 0:15:03]} 14. Bxe4 {[%emt 0:00:41]}
Bd7 {[%emt 0:01:00]} 15. Qc2 {[%emt 0:01:58]} O-O {[%emt 0:05:06]} 16. O-O-O {
[%emt 0:02:21]} Be8 {[%emt 0:08:30]} 17. Kb1 {[%emt 0:02:44]} f5 {[%emt 0:00:
00]} 18. Bxc6 {[%emt 0:04:23]} Bxc6 {[%emt 0:00:25]} 19. Nbd2 {[%emt 0:05:14]}
Bd5 {[%emt 0:05:30]} 20. Rhf1 {[%emt 0:07:00]} Rac8 {[%emt 0:02:02]} 21. Ka1 {
[%emt 0:01:15]} Qa5 {[%emt 0:06:00]} 22. Nb3 {[%emt 0:00:57]} Qa4 {[%emt 0:00:
00]} 23. Nfd4 {[%emt 0:05:35]} Rc4 {[%emt 0:02:22]} 24. Nd2 {[%emt 0:04:28]}
Rxd4 {[%emt 0:01:32]} 25. b3 {[%emt 0:02:08]} Qc6 {[%emt 0:00:34]} 26. f3 {
[%emt 0:05:32]} Rxd2 {[%emt 0:01:41]} 27. Rxd2 {[%emt 0:00:35]} Qxc3+ {[%emt 0:
00:00]} 28. Qxc3 {[%emt 0:00:22]} Bxc3+ {[%emt 0:00:04]} 29. Rb2 {[%emt 0:00:
00]} Rc8 {[%emt 0:00:41]} 30. Kb1 {[%emt 0:00:31]} Bxb2 {[%emt 0:00:05]} 31.
Kxb2 {[%emt 0:00:11]} Kg7 {[%emt 0:00:41]} 32. Rd1 {[%emt 0:02:26]} Kf6 {
[%emt 0:00:21]} 33. Rd4 {[%emt 0:03:44]} g5 {[%emt 0:00:42]} 34. g4 {[%emt 0:
00:00]} fxg4 {[%emt 0:01:12]} 35. Rxg4 {[%emt 0:00:15]} h5 {[%emt 0:00:18]} 36.
Ra4 {[%emt 0:04:48]} a6 {[%emt 0:00:16]} 37. Rd4 {[%emt 0:04:37]} Ke5 {[%emt 0:
00:00]} 38. Rd2 {[%emt 0:00:19]} Kf4 {[%emt 0:00:21]} 39. Ka3 {[%emt 0:02:53]}
Ke3 {[%emt 0:00:53]} 40. Rb2 {[%emt 0:03:42]} g4 {[%emt 0:00:20]} 41. fxg4 {
[%emt 0:30:44]} hxg4 {[%emt 0:30:06]} 42. b4 {[%emt 0:00:00]} g3 {[%emt 0:00:
00]} 43. Ka4 {[%emt 0:00:00]} Rf8 {[%emt 0:00:00]} 44. b5 {[%emt 0:00:00]}
axb5+ {[%emt 0:00:00]} 45. Rxb5 {[%emt 0:00:00]} Bc6 {[%emt 0:00:00]} 0-1

[Event "44th Chess Olympiad Women 2022"]
[Site "Chennai"]
[Date "2022.07.29"]
[Round "1.55"]
[White "Liu, Yang Hazel"]
[Black "Makda Araya Fessehaye"]
[Result "1-0"]
[WhiteElo "2046"]
[BlackElo "1242"]
[Annotator "NA"]
[PlyCount "57"]
[EventDate "2022.??.??"]
[TimeControl "60"]

1. d4 {[%emt 0:00:30]} c5 {[%emt 0:06:55]} 2. d5 {[%emt 0:00:35]} d6 {[%emt 0:
00:00]} 3. e4 {[%emt 0:01:06]} Nf6 {[%emt 0:01:15]} 4. Nc3 {[%emt 0:03:06]} g6
{[%emt 0:04:21]} 5. h3 {[%emt 0:03:58]} Qa5 {[%emt 0:02:04]} 6. Bd2 {[%emt 0:
00:00]} Bg7 {[%emt 0:02:41]} 7. Bd3 {[%emt 0:04:12]} a6 {[%emt 0:04:14]} 8. a4
{[%emt 0:01:05]} Qb6 {[%emt 0:03:36]} 9. a5 {[%emt 0:03:31]} Qc7 {[%emt 0:00:
00]} 10. Nf3 {[%emt 0:03:22]} Bd7 {[%emt 0:03:37]} 11. Qe2 {[%emt 0:05:11]} O-O
{[%emt 0:04:11]} 12. O-O {[%emt 0:00:59]} Bc8 {[%emt 0:08:39]} 13. Bf4 {
[%emt 0:03:34]} Nbd7 {[%emt 0:04:47]} 14. Nd2 {[%emt 0:11:49]} Nh5 {[%emt 0:00:
00]} 15. Bh2 {[%emt 0:00:52]} Ne5 {[%emt 0:02:55]} 16. f4 {[%emt 0:04:40]} Nxd3
{[%emt 0:01:06]} 17. Qxd3 {[%emt 0:00:07]} b6 {[%emt 0:04:59]} 18. axb6 {
[%emt 0:00:57]} Qxb6 {[%emt 0:01:20]} 19. Nc4 {[%emt 0:00:22]} Qc7 {[%emt 0:00:
00]} 20. e5 {[%emt 0:01:21]} dxe5 {[%emt 0:06:27]} 21. fxe5 {[%emt 0:00:19]}
Bf5 {[%emt 0:02:34]} 22. Qd1 {[%emt 0:02:03]} Bd7 {[%emt 0:10:01]} 23. e6 {
[%emt 0:11:10]} Ng3 {[%emt 0:03:53]} 24. Bxg3 {[%emt 0:01:09]} Qxg3 {[%emt 0:
00:00]} 25. exd7 {[%emt 0:00:12]} Bd4+ {[%emt 0:06:06]} 26. Kh1 {[%emt 0:00:09]
} Qc7 {[%emt 0:01:59]} 27. Qf3 {[%emt 0:04:41]} Rad8 {[%emt 0:05:36]} 28. Rxa6
{[%emt 0:06:40]} Rxd7 {[%emt 0:00:50]} 29. Nb5 {[%emt 0:03:42]} 1-0

[Event "44th Chess Olympiad Women 2022"]
[Site "Chennai"]
[Date "2022.07.29"]
[Round "1.56"]
[White "De Souza, Ivana Claudia Eyram"]
[Black "Demchenko, Svitlana"]
[Result "0-1"]
[WhiteElo "1167"]
[BlackElo "2122"]
[Annotator "NA"]
[PlyCount "60"]
[EventDate "2022.??.??"]
[TimeControl "60"]

1. d4 {[%emt 0:00:04]} g6 {[%emt 0:00:36]} 2. c4 {[%emt 0:01:19]} Bg7 {[%emt 0:
00:00]} 3. e3 {[%emt 0:02:40]} d6 {[%emt 0:00:24]} 4. Nf3 {[%emt 0:01:23]} Nf6
{[%emt 0:00:23]} 5. Nc3 {[%emt 0:01:59]} O-O {[%emt 0:00:18]} 6. Be2 {[%emt 0:
00:00]} Nbd7 {[%emt 0:00:27]} 7. O-O {[%emt 0:04:38]} e5 {[%emt 0:00:09]} 8.
Qc2 {[%emt 0:05:11]} c6 {[%emt 0:00:33]} 9. b3 {[%emt 0:08:48]} Qc7 {[%emt 0:
00:00]} 10. Bb2 {[%emt 0:04:05]} Re8 {[%emt 0:04:05]} 11. Bd3 {[%emt 0:05:23]}
Nh5 {[%emt 0:04:53]} 12. Nd2 {[%emt 0:06:11]} f5 {[%emt 0:01:58]} 13. dxe5 {
[%emt 0:12:56]} dxe5 {[%emt 0:00:53]} 14. f3 {[%emt 0:02:03]} Nc5 {[%emt 0:00:
00]} 15. Be2 {[%emt 0:04:34]} a5 {[%emt 0:10:24]} 16. a4 {[%emt 0:06:56]} Qb6 {
[%emt 0:02:29]} 17. Kh1 {[%emt 0:12:38]} Qd8 {[%emt 0:05:38]} 18. f4 {[%emt 0:
00:00]} exf4 {[%emt 0:03:02]} 19. Bxh5 {[%emt 0:05:57]} fxe3 {[%emt 0:01:01]}
20. Nf3 {[%emt 0:02:11]} Qd3 {[%emt 0:04:46]} 21. Qc1 {[%emt 0:03:17]} Nxb3 {
[%emt 0:01:20]} 22. Qd1 {[%emt 0:01:41]} Qxd1 {[%emt 0:02:02]} 23. Rfxd1 {
[%emt 0:00:39]} Nxa1 {[%emt 0:00:29]} 24. Bxa1 {[%emt 0:01:08]} gxh5 {[%emt 0:
00:00]} 25. Re1 {[%emt 0:00:27]} f4 {[%emt 0:01:16]} 26. Ne2 {[%emt 0:00:18]}
Re4 {[%emt 0:01:11]} 27. Bxg7 {[%emt 0:01:08]} Kxg7 {[%emt 0:00:04]} 28. g3 {
[%emt 0:00:32]} Bg4 {[%emt 0:01:16]} 29. Kg2 {[%emt 0:00:28]} fxg3 {[%emt 0:00:
00]} 30. Nxg3 {[%emt 0:00:58]} Rf8 {[%emt 0:00:59]} 0-1

[Event "44th Chess Olympiad Women 2022"]
[Site "Chennai"]
[Date "2022.07.29"]
[Round "1.58"]
[White "Tchouateu Tankeu Stephanie"]
[Black "Otazo Sanchez, Annyd Gabriela"]
[Result "0-1"]
[WhiteElo "1280"]
[BlackElo "1932"]
[Annotator "NA RC"]
[PlyCount "72"]
[EventDate "2022.??.??"]
[TimeControl "60"]

1. d4 {[%emt 0:00:07]} Nf6 {[%emt 0:00:22]} 2. c4 {[%emt 0:00:16]} g6 {[%emt 0:
00:00]} 3. Nc3 {[%emt 0:00:20]} Bg7 {[%emt 0:00:05]} 4. Nf3 {[%emt 0:00:30]}
O-O {[%emt 0:00:33]} 5. Bf4 {[%emt 0:00:51]} d6 {[%emt 0:01:24]} 6. e3 {
[%emt 0:01:44]} Nh5 {[%emt 0:07:46]} 7. Bd3 {[%emt 0:06:56]} Nxf4 {[%emt 0:00:
00]} 8. exf4 {[%emt 0:00:19]} c5 {[%emt 0:00:14]} 9. Ne2 {[%emt 0:02:17]} cxd4
{[%emt 0:06:28]} 10. Nexd4 {[%emt 0:18:19]} Qb6 {[%emt 0:00:45]} 11. Qe2 {
[%emt 0:03:29]} Bxd4 {[%emt 0:01:10]} 12. Nxd4 {[%emt 0:01:07]} Qxd4 {[%emt 0:
00:00]} 13. O-O {[%emt 0:00:23]} Nc6 {[%emt 0:00:12]} 14. Rad1 {[%emt 0:08:12]}
Qxf4 {[%emt 0:00:42]} 15. g3 {[%emt 0:03:00]} Qf6 {[%emt 0:00:14]} 16. Be4 {
[%emt 0:01:25]} Bh3 {[%emt 0:01:33]} 17. Bg2 {[%emt 0:00:12]} Bxg2 {[%emt 0:00:
00]} 18. Kxg2 {[%emt 0:00:30]} Nd4 {[%emt 0:02:17]} 19. Qe4 {[%emt 0:09:12]} e5
{[%emt 0:01:30]} 20. Qxb7 {[%emt 0:03:32]} Rab8 {[%emt 0:05:28]} 21. Qe4 {
[%emt 0:03:49]} Rxb2 {[%emt 0:00:11]} 22. a4 {[%emt 0:03:09]} Rfb8 {[%emt 0:00:
00]} 23. Rd3 {[%emt 0:03:43]} Re2 {[%emt 0:01:48]} 24. Re3 {[%emt 0:16:11]}
Rbb2 {[%emt 0:00:50]} 25. Rxe2 {[%emt 0:00:35]} Rxe2 {[%emt 0:00:07]} 26. Qxe2
{[%emt 0:07:28]} Nxe2 {[%emt 0:00:13]} 27. Re1 {[%emt 0:01:52]} Nd4 {[%emt 0:
00:00]} 28. Re3 {[%emt 0:00:33]} Qe6 {[%emt 0:00:09]} 29. Rc3 {[%emt 0:01:20]}
h5 {[%emt 0:01:02]} 30. h4 {[%emt 0:01:06]} Qd7 {[%emt 0:00:13]} 31. a5 {
[%emt 0:00:23]} Qb7+ {[%emt 0:00:06]} 32. Kg1 {[%emt 0:01:59]} Ne2+ {[%emt 0:
00:00]} 33. Kf1 {[%emt 0:00:14]} Nxc3 {[%emt 0:00:06]} 34. Ke1 {[%emt 0:00:09]}
Qb2 {[%emt 0:00:09]} 35. Kf1 {[%emt 0:00:26]} Ne4 {[%emt 0:00:17]} 36. Ke1 {
[%emt 0:00:21]} Qd2+ {[%emt 0:00:07]} 0-1

[Event "44th Chess Olympiad Women 2022"]
[Site "Chennai"]
[Date "2022.07.29"]
[Round "1.59"]
[White "Nihaya, Ahmed"]
[Black "Chaves, Jussara"]
[Result "1/2-1/2"]
[WhiteElo "1233"]
[BlackElo "1933"]
[Annotator "NA RC"]
[PlyCount "64"]
[EventDate "2022.??.??"]
[TimeControl "60"]

1. e4 {[%emt 0:00:04]} d5 {[%emt 0:00:07]} 2. exd5 {[%emt 0:00:13]} Qxd5 {
[%emt 0:00:07]} 3. Nc3 {[%emt 0:00:24]} Qa5 {[%emt 0:00:07]} 4. Nf3 {[%emt 0:
00:00]} Nf6 {[%emt 0:01:36]} 5. d4 {[%emt 0:01:29]} c6 {[%emt 0:01:17]} 6. Bd3
{[%emt 0:02:22]} g6 {[%emt 0:03:34]} 7. O-O {[%emt 0:01:24]} Bg7 {[%emt 0:00:
00]} 8. Re1 {[%emt 0:00:32]} Bg4 {[%emt 0:04:52]} 9. h3 {[%emt 0:00:18]} Bxf3 {
[%emt 0:02:21]} 10. Qxf3 {[%emt 0:00:33]} Nd5 {[%emt 0:00:55]} 11. Qe2 {
[%emt 0:02:03]} e6 {[%emt 0:06:44]} 12. Nxd5 {[%emt 0:00:17]} cxd5 {[%emt 0:00:
00]} 13. c3 {[%emt 0:00:33]} O-O {[%emt 0:04:17]} 14. Bf4 {[%emt 0:01:37]} Nc6
{[%emt 0:03:51]} 15. Qd2 {[%emt 0:03:16]} Rfe8 {[%emt 0:07:39]} 16. Bh6 {
[%emt 0:00:37]} e5 {[%emt 0:07:44]} 17. Bxg7 {[%emt 0:04:37]} Kxg7 {[%emt 0:00:
00]} 18. dxe5 {[%emt 0:07:01]} d4 {[%emt 0:08:16]} 19. f4 {[%emt 0:07:03]} Rad8
{[%emt 0:05:02]} 20. Qc2 {[%emt 0:01:26]} dxc3 {[%emt 0:04:22]} 21. bxc3 {
[%emt 0:00:08]} Qc5+ {[%emt 0:02:52]} 22. Kh1 {[%emt 0:01:26]} Rd7 {[%emt 0:00:
00]} 23. Rad1 {[%emt 0:03:56]} Red8 {[%emt 0:05:59]} 24. Rd2 {[%emt 0:05:42]}
Rxd3 {[%emt 0:06:14]} 25. Rxd3 {[%emt 0:00:19]} Nb4 {[%emt 0:00:07]} 26. cxb4 {
[%emt 0:02:22]} Qxc2 {[%emt 0:00:09]} 27. Rxd8 {[%emt 0:00:05]} Qxa2 {[%emt 0:
00:00]} 28. Rd7 {[%emt 0:02:07]} Kh6 {[%emt 0:06:23]} 29. Rxb7 {[%emt 0:01:08]}
Qf2 {[%emt 0:02:49]} 30. Ra1 {[%emt 0:01:10]} Qxf4 {[%emt 0:00:28]} 31. Raxa7 {
[%emt 0:00:18]} Qf1+ {[%emt 0:01:22]} 32. Kh2 {[%emt 0:00:11]} Qf4+ {[%emt 0:
00:00]} 1/2-1/2

[Event "44th Chess Olympiad Women 2022"]
[Site "Chennai"]
[Date "2022.07.29"]
[Round "1.59"]
[White "Silva, Ana Ines Teixeira D"]
[Black "Aishath Alya Mohamed Shareef"]
[Result "1-0"]
[WhiteElo "1775"]
[BlackElo "1110"]
[Annotator "NA"]
[PlyCount "25"]
[EventDate "2022.??.??"]
[TimeControl "60"]

1. e4 {[%emt 0:00:02]} e6 {[%emt 0:00:11]} 2. d4 {[%emt 0:00:07]} d5 {[%emt 0:
00:00]} 3. exd5 {[%emt 0:00:15]} exd5 {[%emt 0:00:28]} 4. Nf3 {[%emt 0:00:34]}
Bd6 {[%emt 0:01:42]} 5. c4 {[%emt 0:02:17]} c6 {[%emt 0:03:49]} 6. Bd3 {
[%emt 0:03:20]} Nf6 {[%emt 0:02:10]} 7. O-O {[%emt 0:01:51]} O-O {[%emt 0:00:
00]} 8. Nc3 {[%emt 0:01:15]} h6 {[%emt 0:02:22]} 9. h3 {[%emt 0:06:41]} Be6 {
[%emt 0:03:14]} 10. c5 {[%emt 0:00:43]} Bc7 {[%emt 0:00:37]} 11. b4 {[%emt 0:
00:00]} Nbd7 {[%emt 0:07:26]} 12. Be3 {[%emt 0:04:40]} a6 {[%emt 0:05:28]} 13.
a4 {[%emt 0:02:56]} 1-0

[Event "44th Chess Olympiad Women 2022"]
[Site "Chennai"]
[Date "2022.07.29"]
[Round "1.59"]
[White "Silva, Mariana Sofia T."]
[Black "Nuha, Rilwan"]
[Result "1-0"]
[WhiteElo "1912"]
[BlackElo "1068"]
[Annotator "NA RC"]
[PlyCount "49"]
[EventDate "2022.??.??"]
[TimeControl "60"]

1. d4 {[%emt 0:00:03]} Nf6 {[%emt 0:00:11]} 2. c4 {[%emt 0:00:07]} e6 {[%emt 0:
00:00]} 3. g3 {[%emt 0:00:06]} d5 {[%emt 0:02:12]} 4. Bg2 {[%emt 0:00:06]} c5 {
[%emt 0:02:45]} 5. cxd5 {[%emt 0:00:45]} Nxd5 {[%emt 0:00:20]} 6. Nf3 {[%emt 0:
00:00]} Nc6 {[%emt 0:01:21]} 7. O-O {[%emt 0:03:38]} Be7 {[%emt 0:03:05]} 8.
dxc5 {[%emt 0:01:59]} Bxc5 {[%emt 0:00:33]} 9. Qc2 {[%emt 0:00:16]} Be7 {
[%emt 0:04:42]} 10. a3 {[%emt 0:03:02]} O-O {[%emt 0:01:58]} 11. Rd1 {[%emt 0:
00:00]} Qb6 {[%emt 0:01:07]} 12. e4 {[%emt 0:00:52]} Nf6 {[%emt 0:02:23]} 13.
Be3 {[%emt 0:01:52]} Qc7 {[%emt 0:01:57]} 14. Nc3 {[%emt 0:03:53]} a6 {[%emt 0:
00:00]} 15. h3 {[%emt 0:04:05]} b5 {[%emt 0:03:30]} 16. e5 {[%emt 0:05:47]} Ne8
{[%emt 0:05:18]} 17. Ne4 {[%emt 0:09:00]} Rb8 {[%emt 0:04:25]} 18. Neg5 {
[%emt 0:06:54]} Bxg5 {[%emt 0:02:49]} 19. Nxg5 {[%emt 0:00:10]} g6 {[%emt 0:00:
00]} 20. Qxc6 {[%emt 0:00:28]} Qxc6 {[%emt 0:00:36]} 21. Bxc6 {[%emt 0:00:07]}
Bb7 {[%emt 0:03:06]} 22. Bxb7 {[%emt 0:00:19]} Rxb7 {[%emt 0:00:11]} 23. Bc5 {
[%emt 0:00:20]} Nc7 {[%emt 0:06:46]} 24. Bxf8 {[%emt 0:00:26]} Kxf8 {[%emt 0:
00:00]} 25. Rd7 {[%emt 0:00:10]} 1-0

[Event "44th Chess Olympiad Women 2022"]
[Site "Chennai"]
[Date "2022.07.29"]
[Round "1.60"]
[White "Ramirez, Maria Eugenia"]
[Black "Roberts, Tallulah"]
[Result "1-0"]
[WhiteElo "2005"]
[BlackElo "1536"]
[Annotator "NA RC"]
[PlyCount "43"]
[EventDate "2022.??.??"]
[TimeControl "60"]

1. e4 {[%emt 0:00:03]} e6 {[%emt 0:00:01]} 2. d4 {[%emt 0:00:08]} d5 {[%emt 0:
00:00]} 3. exd5 {[%emt 0:00:08]} exd5 {[%emt 0:00:02]} 4. c4 {[%emt 0:00:11]}
Bb4+ {[%emt 0:00:03]} 5. Nc3 {[%emt 0:00:15]} Ne7 {[%emt 0:00:06]} 6. Nf3 {
[%emt 0:01:19]} O-O {[%emt 0:00:13]} 7. Bd3 {[%emt 0:00:28]} dxc4 {[%emt 0:00:
00]} 8. Bxc4 {[%emt 0:00:09]} Nbc6 {[%emt 0:00:23]} 9. O-O {[%emt 0:04:36]} Bg4
{[%emt 0:00:19]} 10. Be3 {[%emt 0:03:58]} Nf5 {[%emt 0:00:38]} 11. a3 {[%emt 0:
00:00]} Bxf3 {[%emt 0:15:54]} 12. Qxf3 {[%emt 0:00:52]} Nfxd4 {[%emt 0:01:29]}
13. Qh5 {[%emt 0:18:12]} Bxc3 {[%emt 0:31:41]} 14. bxc3 {[%emt 0:00:09]} Ne6 {
[%emt 0:00:07]} 15. Rab1 {[%emt 0:03:30]} Rb8 {[%emt 0:14:31]} 16. f4 {[%emt 0:
00:00]} Qf6 {[%emt 0:07:52]} 17. Rbc1 {[%emt 0:01:36]} b6 {[%emt 0:09:28]} 18.
f5 {[%emt 0:03:59]} Nc5 {[%emt 0:03:10]} 19. Bg5 {[%emt 0:01:17]} Qd6 {[%emt 0:
00:00]} 20. f6 {[%emt 0:07:34]} Ne5 {[%emt 0:01:44]} 21. fxg7 {[%emt 0:01:09]}
Rfe8 {[%emt 0:00:30]} 22. Bxf7+ {[%emt 0:00:36]} 1-0

[Event "44th Chess Olympiad Women 2022"]
[Site "Chennai"]
[Date "2022.07.29"]
[Round "1.61"]
[White "Almusawi, Maram"]
[Black "Johannsdottir, Johanna Bjorg"]
[Result "0-1"]
[WhiteElo "1349"]
[BlackElo "1976"]
[Annotator "NA RC"]
[PlyCount "54"]
[EventDate "2022.??.??"]
[TimeControl "60"]

1. d4 {[%emt 0:00:04]} g6 {[%emt 0:00:06]} 2. Nf3 {[%emt 0:00:28]} Bg7 {
[%emt 0:00:07]} 3. e3 {[%emt 0:00:10]} d6 {[%emt 0:00:29]} 4. Be2 {[%emt 0:00:
00]} Nd7 {[%emt 0:01:40]} 5. Nbd2 {[%emt 0:02:16]} e5 {[%emt 0:02:31]} 6. c3 {
[%emt 0:05:46]} Qe7 {[%emt 0:05:04]} 7. Qc2 {[%emt 0:02:35]} Ngf6 {[%emt 0:00:
00]} 8. Bd3 {[%emt 0:03:08]} O-O {[%emt 0:04:13]} 9. O-O {[%emt 0:02:39]} Nd5 {
[%emt 0:04:26]} 10. Qb3 {[%emt 0:08:56]} c6 {[%emt 0:01:57]} 11. Bc4 {[%emt 0:
00:00]} N5b6 {[%emt 0:04:52]} 12. Bd3 {[%emt 0:04:20]} Kh8 {[%emt 0:05:47]} 13.
a4 {[%emt 0:05:51]} a5 {[%emt 0:05:07]} 14. Re1 {[%emt 0:02:59]} Nd5 {[%emt 0:
00:00]} 15. Qa2 {[%emt 0:06:22]} N7f6 {[%emt 0:13:52]} 16. Ne4 {[%emt 0:02:15]}
Nxe4 {[%emt 0:02:36]} 17. Bxe4 {[%emt 0:00:16]} Be6 {[%emt 0:00:15]} 18. Qb1 {
[%emt 0:01:54]} f5 {[%emt 0:00:35]} 19. Bc2 {[%emt 0:05:33]} e4 {[%emt 0:01:20]
} 20. Nd2 {[%emt 0:00:22]} Qh4 {[%emt 0:00:17]} 21. Nf1 {[%emt 0:04:42]} Nf6 {
[%emt 0:02:33]} 22. Ng3 {[%emt 0:01:37]} g5 {[%emt 0:03:25]} 23. Nf1 {[%emt 0:
00:00]} Bc4 {[%emt 0:01:23]} 24. g3 {[%emt 0:01:06]} Qh3 {[%emt 0:00:12]} 25.
Nd2 {[%emt 0:00:09]} Ng4 {[%emt 0:00:15]} 26. Re2 {[%emt 0:07:05]} Qxh2+ {
[%emt 0:00:15]} 27. Kf1 {[%emt 0:00:17]} Qxf2# {[%emt 0:00:19]} 0-1

[Event "44th Chess Olympiad Women 2022"]
[Site "Chennai"]
[Date "2022.07.29"]
[Round "1.62"]
[White "Mezioud, Amina"]
[Black "Abigail Karyah"]
[Result "1-0"]
[WhiteElo "2024"]
[BlackElo "1455"]
[Annotator "NA RC"]
[PlyCount "21"]
[EventDate "2022.??.??"]
[TimeControl "60"]

1. e4 {[%emt 0:00:05]} e5 {[%emt 0:00:07]} 2. Nf3 {[%emt 0:00:06]} d6 {[%emt 0:
00:00]} 3. d4 {[%emt 0:00:05]} exd4 {[%emt 0:00:26]} 4. Nxd4 {[%emt 0:00:06]}
Nf6 {[%emt 0:00:12]} 5. Nc3 {[%emt 0:00:06]} Be7 {[%emt 0:00:17]} 6. Be2 {
[%emt 0:01:44]} O-O {[%emt 0:00:12]} 7. Be3 {[%emt 0:00:09]} c5 {[%emt 0:01:20]
} 8. Nb3 {[%emt 0:00:58]} Nc6 {[%emt 0:00:32]} 9. O-O {[%emt 0:00:46]} Be6 {
[%emt 0:00:42]} 10. f4 {[%emt 0:02:07]} Qc7 {[%emt 0:01:32]} 11. Nd5 {[%emt 0:
00:00]} 1-0

[Event "44th Chess Olympiad Women 2022"]
[Site "Chennai"]
[Date "2022.07.29"]
[Round "1.65"]
[White "Bah, Mariama Djelo"]
[Black "Penafiel Mendoza, Josselyne"]
[Result "0-1"]
[WhiteElo "1008"]
[BlackElo "1804"]
[Annotator "NA RC"]
[PlyCount "72"]
[EventDate "2022.??.??"]
[TimeControl "60"]

1. e4 {[%emt 0:00:28]} c5 {[%emt 0:00:33]} 2. Nf3 {[%emt 0:00:16]} d6 {[%emt 0:
00:00]} 3. Nc3 {[%emt 0:00:17]} Nf6 {[%emt 0:00:15]} 4. Bb5+ {[%emt 0:01:21]}
Bd7 {[%emt 0:00:58]} 5. O-O {[%emt 0:00:56]} a6 {[%emt 0:02:48]} 6. Bxd7+ {
[%emt 0:01:55]} Nbxd7 {[%emt 0:02:17]} 7. d3 {[%emt 0:01:10]} e6 {[%emt 0:00:
00]} 8. Bg5 {[%emt 0:01:24]} h6 {[%emt 0:02:14]} 9. Bxf6 {[%emt 0:02:19]} Qxf6
{[%emt 0:00:32]} 10. Qd2 {[%emt 0:01:32]} Be7 {[%emt 0:01:01]} 11. Rae1 {
[%emt 0:02:46]} O-O {[%emt 0:00:47]} 12. h3 {[%emt 0:01:11]} b5 {[%emt 0:00:16]
} 13. b3 {[%emt 0:04:16]} Rfb8 {[%emt 0:02:01]} 14. d4 {[%emt 0:03:34]} cxd4 {
[%emt 0:00:30]} 15. Nxd4 {[%emt 0:00:48]} Rc8 {[%emt 0:01:08]} 16. Re3 {
[%emt 0:05:09]} Qg5 {[%emt 0:02:13]} 17. Re2 {[%emt 0:06:58]} Qxd2 {[%emt 0:00:
00]} 18. Rxd2 {[%emt 0:00:20]} Rxc3 {[%emt 0:00:04]} 19. Re1 {[%emt 0:07:20]}
Rac8 {[%emt 0:02:33]} 20. Rd3 {[%emt 0:00:55]} Bf6 {[%emt 0:00:26]} 21. Rxc3 {
[%emt 0:07:14]} Rxc3 {[%emt 0:00:06]} 22. Re3 {[%emt 0:07:38]} Bxd4 {[%emt 0:
00:00]} 23. Rxc3 {[%emt 0:01:28]} Bxc3 {[%emt 0:00:06]} 24. a4 {[%emt 0:03:02]}
bxa4 {[%emt 0:00:06]} 25. bxa4 {[%emt 0:00:19]} Nc5 {[%emt 0:00:06]} 26. f3 {
[%emt 0:01:18]} Nxa4 {[%emt 0:00:02]} 27. g3 {[%emt 0:02:17]} Nb2 {[%emt 0:00:
00]} 28. Kf1 {[%emt 0:01:08]} a5 {[%emt 0:00:12]} 29. h4 {[%emt 0:01:15]} a4 {
[%emt 0:00:07]} 30. f4 {[%emt 0:01:42]} a3 {[%emt 0:00:07]} 31. f5 {[%emt 0:00:
00]} a2 {[%emt 0:00:28]} 32. fxe6 {[%emt 0:01:02]} a1=Q+ {[%emt 0:00:06]} 33.
Ke2 {[%emt 0:02:42]} Qd1+ {[%emt 0:00:48]} 34. Ke3 {[%emt 0:03:16]} Nc4+ {
[%emt 0:00:17]} 35. Kf4 {[%emt 0:01:10]} Be5+ {[%emt 0:00:13]} 36. Kf5 {
[%emt 0:01:25]} g6# {[%emt 0:00:10]} 0-1

[Event "44th Chess Olympiad Women 2022"]
[Site "Chennai"]
[Date "2022.07.29"]
[Round "1.73"]
[White "Grishina, Alexandra"]
[Black "Inthavong, Maly"]
[Result "1-0"]
[WhiteElo "2012"]
[BlackElo "1231"]
[Annotator "NA"]
[PlyCount "79"]
[EventDate "2022.??.??"]
[TimeControl "60"]

1. Nf3 {[%emt 0:00:11]} Nc6 {[%emt 0:00:38]} 2. d4 {[%emt 0:00:59]} Nf6 {
[%emt 0:01:11]} 3. d5 {[%emt 0:01:13]} Nb4 {[%emt 0:01:23]} 4. c4 {[%emt 0:00:
00]} d6 {[%emt 0:00:29]} 5. Qa4+ {[%emt 0:01:10]} Nc6 {[%emt 0:05:06]} 6. dxc6
{[%emt 0:02:54]} bxc6 {[%emt 0:01:52]} 7. Qxc6+ {[%emt 0:02:43]} Bd7 {[%emt 0:
00:00]} 8. Qa6 {[%emt 0:00:33]} e5 {[%emt 0:01:54]} 9. g3 {[%emt 0:02:05]} Ne4
{[%emt 0:03:49]} 10. Bg2 {[%emt 0:03:28]} Nc5 {[%emt 0:02:54]} 11. Qa5 {
[%emt 0:01:17]} Bc6 {[%emt 0:02:24]} 12. Bg5 {[%emt 0:05:22]} Be7 {[%emt 0:00:
00]} 13. Bxe7 {[%emt 0:00:34]} Qxe7 {[%emt 0:00:21]} 14. O-O {[%emt 0:00:39]}
O-O {[%emt 0:00:26]} 15. Qd2 {[%emt 0:00:34]} f5 {[%emt 0:03:28]} 16. Nc3 {
[%emt 0:03:50]} Rab8 {[%emt 0:02:52]} 17. Nd5 {[%emt 0:03:09]} Qd7 {[%emt 0:00:
00]} 18. Rad1 {[%emt 0:05:25]} Ne4 {[%emt 0:06:34]} 19. Qc2 {[%emt 0:02:19]}
Ba8 {[%emt 0:03:10]} 20. Nxe5 {[%emt 0:12:57]} Qe6 {[%emt 0:02:37]} 21. Nf3 {
[%emt 0:02:11]} Rbc8 {[%emt 0:01:18]} 22. Nd4 {[%emt 0:04:02]} Qe8 {[%emt 0:00:
00]} 23. Nxf5 {[%emt 0:04:18]} Rxf5 {[%emt 0:04:02]} 24. Bxe4 {[%emt 0:00:54]}
Rh5 {[%emt 0:00:40]} 25. Bf3 {[%emt 0:06:02]} Rh6 {[%emt 0:00:38]} 26. Rd4 {
[%emt 0:01:47]} Kh8 {[%emt 0:02:55]} 27. Qe4 {[%emt 0:06:25]} Qf7 {[%emt 0:00:
00]} 28. Qf4 {[%emt 0:00:59]} Qe8 {[%emt 0:01:32]} 29. Re4 {[%emt 0:00:37]} Qd8
{[%emt 0:03:09]} 30. Qf7 {[%emt 0:01:40]} c6 {[%emt 0:01:14]} 31. Re7 {[%emt 0:
00:00]} Rg6 {[%emt 0:02:21]} 32. Nf4 {[%emt 0:00:48]} Rg5 {[%emt 0:02:24]} 33.
Ne6 {[%emt 0:00:22]} Rxg3+ {[%emt 0:01:48]} 34. hxg3 {[%emt 0:00:28]} Qg8 {
[%emt 0:00:13]} 35. Qxg7+ {[%emt 0:03:51]} Qxg7 {[%emt 0:00:32]} 36. Nxg7 {
[%emt 0:00:13]} Rg8 {[%emt 0:01:04]} 37. Ne6 {[%emt 0:00:22]} a5 {[%emt 0:00:
00]} 38. Be4 {[%emt 0:00:06]} Rg4 {[%emt 0:01:01]} 39. Bf5 {[%emt 0:00:51]}
Rxc4 {[%emt 0:03:51]} 40. Re8# {[%emt 0:00:21]} 1-0